Cogmind - Beta 16.1 @@@ ROGUE MODE // 2026.02.14 @ 02:45:27 Player: Rudrot Result: Destroyed by Y-54 Guardian with Flak Gun Performance ------------- Evolutions (3) 1500 Regions Visited (5) 1000 Robots Destroyed (100) 500 Value Destroyed (2984) 2984 Prototype IDs (7) 140 Alien Tech Used (0) 0 Bonus (67) 67 TOTAL SCORE: 6191 Bonus ------- High Alert Combat Kills 67 Cogmind --------- Core Integrity 0/700 Matter 300/300 Energy 100/100 System Corruption 2% Temperature Cool (12) Movement Core (50) Location -7/Lower Caves Parts ------- > --- POWER (2) -------- (None) > --- PROPULSION (3) --- (None) > --- UTILITY (5) ------ Visual Processing Unit Improved Signal Interpreter > --- WEAPON (3) ------- (None) > --- INVENTORY (5) ---- Carbon-fiber Leg Titanium Leg Titanium Leg Weight Redist. System Graphene Brace Peak State ------------ > --- POWER ------------ Cooled Ion Engine > --- PROPULSION ------- Aerolev Unit Cooled Airjet Cooled Airjet > --- UTILITY ---------- Medium Storage Unit Large Battery Visual Processing Unit Improved Signal Interpreter Light Armor Plating > --- WEAPON ----------- Arc Projector Arc Projector > --- INVENTORY -------- Carbon-fiber Leg Carbon-fiber Leg Carbon-fiber Leg Graphene Brace Improved EM Shotgun Arc Projector Arc Projector Advanced EMP Blaster Grenade Launcher [Rating: 36] Favorites ----------- Power Cooled Ion Engine Engine Cooled Ion Engine Propulsion Aluminum Leg Leg Aluminum Leg Hover Unit Cooled Airjet Utility Medium Storage Unit Device Sensor Array Storage Medium Storage Unit Processor Visual Processing Unit Protection Insulated Plating Weapon Improved EM Shotgun Energy Gun Improved EM Shotgun Energy Cannon Advanced Beam Cannon Launcher Grenade Launcher Build | -11 -10 -9 -8 -7 -7 ------- Run | Yrd Mat Mat Mat Fac Low Slots Evolved 6 | . . 2 2 2 . Power 1 | . . . . 1 . Propulsion 1 | . . . 1 . . Utility 3 | . . 2 1 . . Weapon 1 | . . . . 1 . Parts Attached 70 | 7 6 26 30 1 . Power 6 | 1 1 3 1 . . Engine 6 | 1 1 3 1 . . Core . | . . . . . . Reactor . | . . . . . . Propulsion 21 | 2 1 6 12 . . Treads . | . . . . . . Leg 18 | 2 1 6 9 . . Wheel . | . . . . . . Hover 3 | . . . 3 . . Flight . | . . . . . . Utility 17 | 2 3 3 9 . . Device 7 | 1 1 1 4 . . Storage 3 | 1 1 . 1 . . Processor 3 | . 1 1 1 . . Hackware . | . . . . . . Protection 4 | . . 1 3 . . Artifact . | . . . . . . Weapon 26 | 2 1 14 8 1 . Energy Gun 19 | 2 . 10 6 1 . Energy Cannon 1 | . . 1 . . . Ballistic Gun . | . . . . . . Ballistic Cannon . | . . . . . . Launcher 6 | . 1 3 2 . . Special Weapon . | . . . . . . Impact Weapon . | . . . . . . Slashing Weapon . | . . . . . . Piercing Weapon . | . . . . . . Special Melee Weapon . | . . . . . . Unidentified Prototypes 7 | . . 3 3 1 . Parts Lost 29 | . 1 2 21 5 . Power 3 | . . . 3 . . Propulsion 6 | . . . 6 . . Utility 8 | . . 1 5 2 . Weapon 12 | . 1 1 7 3 . Highest Loss Streak 8 | . 1 1 8 5 . To Critical Strikes . | . . . . . . Average Backups 8 | 1 8 9 8 7 5 Power . | . . . . . . Propulsion 1 | . . 1 2 4 3 Utility 1 | . . . 1 1 2 Weapon 5 | . 6 7 4 1 . Tool/Special . | . . . . . . Unused Backups 14 | . 2 5 1 3 3 Power 2 | . 1 1 . . . Propulsion 5 | . . 2 . 2 1 Utility 4 | . . . 1 1 2 Weapon 3 | . 1 2 . . . Tool/Special . | . . . . . . Average Slot Usage (%) 89 | . 97 98 88 58 27 Engine 8 | . 14 10 7 . . Leg 19 | . 28 22 18 11 5 Hover 1 | . . . 4 . . Device 7 | . 9 8 7 . . Storage 10 | . 13 11 10 14 5 Processor 18 | . 3 21 18 15 15 Protection 3 | . . 1 6 6 . Energy Gun 16 | . 25 19 13 8 . Launcher 1 | . . . 2 . . Peak Build Rating 36 | 6 7 19 36 30 10 Average Rating 19 | 4 6 16 25 21 9 On Entrance 9 | . 6 6 19 16 10 Avg Prop Armor Cover (%) . | . . . . . . Naked Turns . | . . . . . . Heaviest Build 30 | 12 19 27 30 23 3 Greatest Support 51 | 20 20 20 51 34 17 Greatest Overweight (x) 7 | . . 1 7 . . Average Overweight (x) . | . . . . . . Largest Inventory Capacity 10 | 8 10 10 10 10 5 Average Capacity 9 | 5 9 10 10 9 5 Most Carried 10 | 3 10 10 10 10 5 Average Carried 8 | 1 8 9 8 7 5 Final Capacity 10 | 5 10 10 10 5 5 Final Carried 9 | 3 9 8 9 5 5 Class Distribution -------------------- 51% | Mutant 39% | Skirmisher 8% | Scavenger-Mutant Dominant Class ---------------- Mutant | -10/Materials Skirmisher | -9/Materials Mutant | -8/Materials Mutant | -7/Factory Mutant | -7/Lower Caves Resources | -11 -10 -9 -8 -7 -7 ----------- Run | Yrd Mat Mat Mat Fac Low Matter Collected 1529 | 270 70 405 667 52 65 Remotely . | . . . . . . Salvage Created 4264 | 125 468 1560 2059 52 . Parts 256 | 5 28 113 107 3 . Haulers Intercepted 9 | . 1 5 2 1 . Recyclers Shooed 2 | . 1 . 1 . . Parts Field Recycled . | . . . . . . Retrieved Matter . | . . . . . . Parts Self-Destructed . | . . . . . . Prevented . | . . . . . . Parts Restored . | . . . . . . Kills | -11 -10 -9 -8 -7 -7 ------- Run | Yrd Mat Mat Mat Fac Low Combat Hostiles Destroyed 64 | . 7 24 33 . . Guns 33 | . 6 12 15 . . Cannons 3 | . . 3 . . . AOE 20 | . 1 8 11 . . Classes Destroyed 14 | 2 3 6 3 . . Worker 4 | . 1 1 2 . . Builder 7 | . . 2 5 . . Tunneler 3 | 2 . . 1 . . Hauler 9 | . 1 5 2 1 . Recycler 3 | 1 1 1 . . . Operator 2 | . . 2 . . . Watcher 8 | . . 5 3 . . Swarmer 3 | . . . 3 . . Grunt 40 | . 7 15 18 . . Brawler 3 | . . 2 1 . . Duelist 2 | . . 1 1 . . Sentry 13 | . . 6 7 . . Hunter 2 | . . . 2 . . Heavy 1 | . . . 1 . . Best Kill Streak 7 | 2 7 5 6 1 . Combat Bots Only 5 | . 4 5 3 . . Max Kills in Single Turn 2 | 1 1 1 2 1 . Gunslinging 1 | . . . 1 . . Exploded 2 | . 1 1 2 . . Melee . | . . . . . . Uniques/NPCs Destroyed . | . . . . . . Combat | -11 -10 -9 -8 -7 -7 -------- Run | Yrd Mat Mat Mat Fac Low Hostile Shots Fired 530 | . 21 92 190 141 86 Missed 202 | . 8 28 65 61 40 Hits 328 | . 13 64 125 80 46 Melee 8 | . . 6 2 . . Projectile 320 | . 13 58 123 80 46 Critical Strikes 8 | . . . 4 . 4 Damage Taken 4786 | 38 150 916 2466 634 582 Core 1274 | 19 23 129 401 205 497 Absorbed by Shields . | . . . . . . Redirected to Shielding 106 | . . . 35 71 . Ignored by Resistances 21 | . . . 21 . . Regen/Repaired (Parts) 271 | . . 89 182 . . Core Remaining (%) 67 | 92 83 67 27 . . Volleys Fired 315 | 11 25 86 186 7 . Largest 2 | 2 2 2 2 2 . Hottest 133 | 80 80 133 110 110 . Shots Fired 530 | 22 45 159 293 11 . Gun 461 | 22 44 125 259 11 . Cannon 22 | . . 22 . . . Launcher 47 | . 1 12 34 . . Special . | . . . . . . Kinetic . | . . . . . . Thermal 29 | . . 29 . . . Explosive 29 | . 1 12 16 . . Electromagnetic 472 | 22 44 118 277 11 . Robot Hit Streak 16 | 4 10 14 11 16 . Robot Miss Streak 8 | 3 2 8 5 . . Penetration Max . | . . . . . . Secondary Targets 3 | . . 1 2 . . Max Gunslinging Chain 1 | . . 1 1 . . Shots Hit Robots 303 | 14 29 99 150 11 . Core Hits 184 | 4 16 67 93 4 . Critical Kills . | . . . . . . Critical Parts Destroyed . | . . . . . . Critical Strikes 5 | . 1 1 3 . . Corrupt 5 | . 1 1 3 . . Melee Attacks . | . . . . . . Impact . | . . . . . . Slashing . | . . . . . . Piercing . | . . . . . . Sneak Attacks . | . . . . . . Combat Hostiles . | . . . . . . Follow-up Attacks . | . . . . . . Damage Inflicted 6897 | 256 479 2214 3838 110 . Guns 4103 | 171 402 1221 2201 108 . Cannons 289 | . . 289 . . . Explosions 2429 | 85 76 669 1599 . . Melee . | . . . . . . Ramming 76 | . 1 35 38 2 . Kinetic . | . . . . . . Thermal 1159 | 85 76 476 522 . . Explosive 785 | . . 512 273 . . Electromagnetic 4877 | 171 402 1191 3005 108 . Impact . | . . . . . . Slashing . | . . . . . . Piercing . | . . . . . . Highest Corruption 2 | . . . 1 . 2 Average Corruption 1 | . . . 1 . 1 Corruption Purged . | . . . . . . Corruption Blocked . | . . . . . . Effects 6 | . . . 6 . . Message Errors 1 | . . . 1 . . Matter Fused 3 | . . . 3 . . Heat Flow Errors 2 | . . . 2 . . Overload Shots . | . . . . . . Overflow Damage 103 | . . . 103 . . Projectiles . | . . . . . . Explosions 103 | . . . 103 . . Melee . | . . . . . . Knockbacks 1 | . . 1 . . . Impact 1 | . . 1 . . . Kinetic . | . . . . . . Secondary . | . . . . . . Self-Inflicted Damage 381 | 38 . 27 316 . . Shots 14 | 1 . 2 11 . . Rammed 1 | . . . 1 . . Targets Rammed 14 | . 1 5 7 1 . Kicked 13 | . 1 5 6 1 . Crushed . | . . . . . . Highest Temperature 356 | 66 114 294 356 66 . Average Temperature 68 | 34 52 77 69 33 . Received Heat Transfer 1437 | . 81 288 801 162 105 Effects 4 | . . 4 . . . Interference 4 | . . 4 . . . Siege Activations . | . . . . . . Martial Activations . | . . . . . . Shielding Activations . | . . . . . . Robots Disrupted 2 | . . . 2 . . Combat Hostiles 2 | . . . 2 . . Robots Corrupted 9 | . . 1 8 . . Combat Hostiles 8 | . . 1 7 . . Parts Fried 32 | 2 1 3 26 . . Impact Corruptions . | . . . . . . Robots Melted . | . . . . . . Combat Hostiles . | . . . . . . Parts Melted . | . . . . . . Heat Transferred 1492 | 100 100 742 550 . . Parts Sabotaged . | . . . . . . Parts Stolen . | . . . . . . Parts Stripped . | . . . . . . Power Chain Reactions 13 | 2 2 3 6 . . Alert | -11 -10 -9 -8 -7 -7 ------- Run | Yrd Mat Mat Mat Fac Low Maximum Alert Level 2 | . . . 2 1 . Low Security (%) 81 | 100 100 100 59 52 . Level 1 6 | . . . 10 47 . Level 2 12 | . . . 30 . . Level 3 . | . . . . . . Level 4 . | . . . . . . Level 5 . | . . . . . . High Security . | . . . . . . Max Security . | . . . . . . Peak Influence 592 | 5 104 189 592 251 . Initial 251 | . . 18 78 251 . Average 143 | 1 37 56 257 185 . Influence Increases 2412 | 15 209 785 1387 16 . Destroy 0b10 Robot/C 1280 | . 140 480 660 . . Destroy 0b10 Robot/NC 180 | 15 15 80 65 5 . Destroy Leader 324 | . 22 130 170 2 . Successful Hack 41 | . . 19 13 9 . Disable Machine 135 | . . 30 105 . . Destroy Structure 167 | . 17 46 104 . . Lose Combat Pursuer 285 | . 15 . 270 . . Influence Decreases 2412 | 15 163 645 1020 492 77 Entered New Map 468 | . . 28 108 302 30 Time Decay 1565 | 15 163 498 702 140 47 Lost Part 270 | . . 10 210 50 . Purge Threat 109 | . . 109 . . . Squads Dispatched 9 | . 2 1 5 1 . Investigation 4 | . 2 . 1 1 . Extermination . | . . . . . . Reinforcement 4 | . . 1 3 . . Assault . | . . . . . . Garrison 1 | . . . 1 . . Intercept . | . . . . . . Searches Triggered . | . . . . . . Construction Impeded 1 | . . . 1 . . Haulers Reinforced . | . . . . . . Active Scanning Responses . | . . . . . . Cargo Convoy Interrupts . | . . . . . . Stealth | -11 -10 -9 -8 -7 -7 --------- Run | Yrd Mat Mat Mat Fac Low Distress Signals 7 | . . 2 5 . . Communications Jammed . | . . . . . . Distress Signals . | . . . . . . Times Spotted 123 | . 7 33 69 3 11 Peak Tracking Total 11 | . 3 4 6 3 11 Tactical Retreats 8 | . 1 . 7 . . Traps | -11 -10 -9 -8 -7 -7 ------- Run | Yrd Mat Mat Mat Fac Low Traps Triggered 3 | . 2 . . 1 . Indirectly . | . . . . . . Trap Hack Attempts . | . . . . . . Triggered . | . . . . . . Disarmed 4 | . . . 4 . . Reprogrammed . | . . . . . . Reused . | . . . . . . Traps Extracted . | . . . . . . Installed . | . . . . . . Triggered . | . . . . . . Machines | -11 -10 -9 -8 -7 -7 ---------- Run | Yrd Mat Mat Mat Fac Low Machines Disabled 9 | . . 2 7 . . Max in Single Turn 1 | . . 1 1 . . Machines Repaired . | . . . . . . Machines Dismantled . | . . . . . . Machines Sabotaged . | . . . . . . Overloaded Fab Kills . | . . . . . . Hacking | -11 -10 -9 -8 -7 -7 --------- Run | Yrd Mat Mat Mat Fac Low Machines Accessed 18 | . 1 7 7 3 . Terminals 9 | . 1 3 3 2 . Fabricators . | . . . . . . Repair Stations 4 | . . 2 2 . . Recycling Units . | . . . . . . Scanalyzers 5 | . . 2 2 1 . Garrison Access . | . . . . . . Total Hacks 48 | . 3 16 22 7 . Successful 34 | . . 11 19 4 . Failed 12 | . 3 4 2 3 . Catastrophic 1 | . 1 . . . . Database Lockouts 2 | . . 1 1 . . Manual . | . . . . . . Terminals 21 | . 3 7 5 6 . Fabricators . | . . . . . . Repair Stations 13 | . . 5 8 . . Recycling Units . | . . . . . . Scanalyzers 14 | . . 4 9 1 . Garrison Access . | . . . . . . Terminal Hacks 11 | . . 4 4 3 . Open DSF 1 | . . . . 1 . Emergency Access Points 1 | . . 1 . . . Terminal Index 1 | . . 1 . . . Unreport Threat 1 | . . 1 . . . Locate Traps 3 | . . 1 1 1 . Disarm Traps 1 | . . . 1 . . Security Status 1 | . . . 1 . . Zone Layout 2 | . . . 1 1 . Fabricator Hacks . | . . . . . . Repair Station Hacks 11 | . . 4 7 . . Scan Component 6 | . . 2 4 . . Repair 5 | . . 2 3 . . Recycling Unit Hacks . | . . . . . . Scanalyzer 12 | . . 3 8 1 . Insert Component 3 | . . 1 2 . . Analyze 3 | . . 1 2 . . Retrieve Study 6 | . . 1 4 1 . Garrison Access Hacks . | . . . . . . Unauthorized Hacks . | . . . . . . Terminals . | . . . . . . Fabricators . | . . . . . . Repair Stations . | . . . . . . Recycling Units . | . . . . . . Scanalyzers . | . . . . . . Garrison Access . | . . . . . . Data Cores Recovered 2 | . . 2 . . . Used . | . . . . . . Hacking Detections 10 | . 1 3 4 2 . Full Trace Events 3 | . 1 . 2 . . Feedback Events . | . . . . . . Feedback Blocked . | . . . . . . Robot Schematics Acquired . | . . . . . . Robots Built . | . . . . . . Authchips . | . . . . . . Time . | . . . . . . Total Robot Build Rating . | . . . . . . Part Schematics Acquired 3 | . . 1 2 . . Parts Built . | . . . . . . Authchips . | . . . . . . Time . | . . . . . . Total Part Build Rating . | . . . . . . Part Studies Acquired 6 | . . 1 4 1 . Parts Repaired 5 | . . 2 3 . . Time 215 | . . 77 138 . . Parts Recycled . | . . . . . . Recycled Matter . | . . . . . . Retrieved Matter . | . . . . . . Retrieved Components . | . . . . . . Parts Scanalyzed 3 | . . 1 2 . . Part Schematics Acquired 3 | . . 1 2 . . Parts Damaged 1 | . . 1 . . . Bothacking | -11 -10 -9 -8 -7 -7 ------------ Run | Yrd Mat Mat Mat Fac Low Used RIF Installer . | . . . . . . Robots Hacked . | . . . . . . Non-combat . | . . . . . . Combat . | . . . . . . Robot Hacks Applied . | . . . . . . Relay Couplers Released . | . . . . . . Fabnet Peak Effective % . | . . . . . . Robots Rewired . | . . . . . . Allies Hacked . | . . . . . . Hacks Repelled . | . . . . . . Allies | -11 -10 -9 -8 -7 -7 -------- Run | Yrd Mat Mat Mat Fac Low Total Allies . | . . . . . . Largest Group . | . . . . . . Highest-Rated Group . | . . . . . . Highest-Rated Ally . | . . . . . . Total Orders . | . . . . . . Ally Attacks . | . . . . . . Total Damage . | . . . . . . Kills . | . . . . . . Allies Corrupted . | . . . . . . Allies Melted . | . . . . . . Intel | -11 -10 -9 -8 -7 -7 ------- Run | Yrd Mat Mat Mat Fac Low Active Infowar (turns) 7136 | 10 382 3103 3032 294 315 Optics 6664 | . . 3023 3032 294 315 Sensors 3285 | . . 2462 823 . . Seismic 392 | 10 382 . . . . Robot Analysis Total . | . . . . . . Derelict Logs Recovered . | . . . . . . Drone Launches . | . . . . . . Drone Recoveries . | . . . . . . Exploration | -11 -10 -9 -8 -7 -7 ------------- Run | Yrd Mat Mat Mat Fac Low Turns Passed 7549 | 146 538 3224 3032 294 315 Spaces Moved 4247 | 88 306 1480 1868 185 320 Core 102 | 8 . . 6 . 88 Treads . | . . . . . . Legs 3685 | 80 306 1480 1402 185 232 Wheels . | . . . . . . Hover 460 | . . . 460 . . Flight . | . . . . . . Fastest Speed 42 | 50 120 120 42 115 50 Average Speed 135 | 113 120 175 115 115 97 Slowest Speed 400 | 120 120 190 400 115 115 Overloaded Moves . | . . . . . . Propulsion Burnouts . | . . . . . . Robots Hopped . | . . . . . . Potential Cave-ins . | . . . . . . Cave-ins Triggered . | . . . . . . Exploration Rate (%) 44 | 4 32 79 96 7 51 Regions Visited 5 Branch Regions 1 Pre-discovered Areas . | . . . . . . Known Exits Taken 4 | . 1 1 1 1 . Unknown Exits Taken 1 | 1 . . . . . Scrap Searched . | . . . . . . Spaces Dug . | . . . . . . Terrain Destroyed 174 | 6 16 39 113 . . Melee . | . . . . . . Projectile . | . . . . . . AOE 174 | 6 16 39 113 . . Terrain Rammed . | . . . . . . Walls Destroyed . | . . . . . . Machines Disabled . | . . . . . . Actions | -11 -10 -9 -8 -7 -7 --------- Run | Yrd Mat Mat Mat Fac Low Total 5526 | 109 435 1949 2448 261 324 Wait 706 | 1 71 305 277 51 1 Move 4242 | 87 305 1479 1867 184 320 Hop . | . . . . . . Pick Up 54 | 2 13 16 17 6 . Fast Attach 38 | 7 2 10 18 1 . Attach 38 | . 1 5 28 4 . Detach 28 | 1 2 4 19 2 . Swap 30 | . 5 14 10 . 1 Drop 61 | . 10 25 19 5 2 Fire 315 | 11 25 86 186 7 . Melee . | . . . . . . Ram 1 | . . . 1 . . Kick 13 | . 1 5 6 1 . Crush . | . . . . . . Escape Stasis . | . . . . . . Rewire . | . . . . . . Trap . | . . . . . . Miscellaneous . | . . . . . . Route ------- -11/Scrapyard -10/Materials (discovered 2 exits: *Mat / *Sub) -9/Materials (discovered 5 exits: *Mat x2 / *Min / *Sto x2) -8/Materials (discovered 3 exits: *Fac x3) -7/Factory -7/Lower Caves History --------- Turn | Location | Event 7 | -11/Scrapyard | Discovered new exit (range 16) 147 | -11/Scrapyard | Entered Materials 305 | -10/Materials | Build established: Mutant 493 | -10/Materials | Discovered new exit (range 6) 559 | -10/Materials | Identified exit to Subcaves 618 | -10/Materials | Discovered new exit (range 16) 674 | -10/Materials | Identified exit to Materials 685 | -10/Materials | Entered another Materials area 685 | -9/Materials | Evolved 2 slots: Utility x2 815 | -9/Materials | Discovered new exit (range 15) 832 | -9/Materials | Identified exit to Storage 938 | -9/Materials | Discovered new exit (range 14) 955 | -9/Materials | Identified exit to Mines 1051 | -9/Materials | Discovered exit to Storage (range 7) 1173 | -9/Materials | Build established: Skirmisher 1658 | -9/Materials | Discovered new exit (range 13) 1871 | -9/Materials | Identified exit to Materials 2530 | -9/Materials | Repaired Aluminum Leg 2969 | -9/Materials | Repaired Imp. EM Shotgun 3340 | -9/Materials | Central database locked down 3546 | -9/Materials | Build established: Mutant 3622 | -9/Materials | Discovered exit to Materials (range 17) 3909 | -9/Materials | Entered another Materials area 3909 | -8/Materials | Evolved 2 slots: Propulsion x1, Utility x1 4183 | -8/Materials | Repaired Broken Imp. EM Shotgun 4226 | -8/Materials | Repaired Insulated Plating? 4658 | -8/Materials | Build established: Scavenger-Mutant 4662 | -8/Materials | Discovered new exit (range 12) 4677 | -8/Materials | Identified exit to Factory 5363 | -8/Materials | Repaired Corrupted Aluminum Leg 5443 | -8/Materials | Build established: Skirmisher 5497 | -8/Materials | Central database locked down 5544 | -8/Materials | Discovered exit to Factory (range 4) 5602 | -8/Materials | Lost 8 parts (1p3n1u3w) 6073 | -8/Materials | Lost 5 parts (1p2n2u) 6322 | -8/Materials | Build established: Mutant 6486 | -8/Materials | Core integrity fell below 50% 6915 | -8/Materials | Garrison activated, responded to threat 6924 | -8/Materials | Discovered exit to Factory (range 16) 6941 | -8/Materials | Entered Factory 6941 | -7/Factory | Evolved 2 slots: Power x1, Weapon x1 7014 | -7/Factory | Identified exit to DSF 7161 | -7/Factory | Discovered new exit (range 17) 7207 | -7/Factory | Identified exit to Lower Caves 7235 | -7/Factory | Entered Lower Caves 7257 | -7/Lower Caves | Lost 5 parts (2u3w) 7471 | -7/Lower Caves | Ambushed by research squad 7507 | -7/Lower Caves | Core integrity fell below 50% 7511 | -7/Lower Caves | Attracted the attention of an 0b10 checkpoint 7540 | -7/Lower Caves | Core integrity fell below 20% 7550 | -7/Lower Caves | Destroyed by Y-54 Guardian with Flak Gun Last Messages --------------- 07470_ Penetrated by Slug. 07471_ P-60 Hacker: "UNIQUE TECHNOLOGY DETECTED, NEUTRALIZE FOR ANALYSIS." 07483_ Slug penetrates Wall. 07501_ Slug penetrates H-55 Commando. 07503_ Penetrated by Slug. 07505_ Dropped Titanium Leg+. 07505_ Dropped Lrg. Battery. 07506_ Slug penetrates Wall. 07511_ Y-54 Guardian: "INTERCEPTING UNREGISTERED DERELICT." 07512_ Critical hit (Burn: +37). 07514_ Acquired 2 matter. 07527_ Acquired 43 matter. 07536_ Chain reaction triggered in Lgt. Nuclear Core. 07536_ S-27 Virus destroyed. 07538_ Acquired 20 matter. 07544_ Critical hit (Burn: +37). 07549_ Slug penetrates B-48 Gladiator. Map ----- +----------------------------------------------------+ | #### #?###### ###??# #### #??# # | | ???# ##?# ## ##?## ###### #??# | | ???# ##??? ##?#### #?## # | | #### #?????? %% %#????# """" ##?# | | ##??????# #????# """" ##??# | | !=##????## #????# """" ##???# # | | "" #???## % ####?# ###???### ## | | " ##???# % #?#### #????## ## | | " # ##????# #??## ##??## #?# | | "" # #?????# #### #?## #### # ### | | """ #?????# ##??# ### | | "" ####### #???# | | # ##???# ### # #### | | $ #????###### ## ##?#####??## | | #### #### ## #????????## ######??????????## | | ???## #??# ## #????????# #????????????????? | | ????# #?## ????????### #????????????????? | | ????# #?# ?????????## #????????????????? | | ????# ## ###???????# #????????????????? | | ????# ## ######## #????????????????? | | ????###? #????????????????? | | ???????# b #????????????????? | | ???????# g #######????????????????? | | ???????# ### hbhg #??????????????????????? | | ???????# ## #??????????????????????? | | ???????# ## ##Y@#??????????????????????? | | ???????## ##### !%### #??????????????????????? | | ????????####?#### ###g ####???????????????????? | | ?????????????# ###?????????????????? | | ?????????????# ###???????????????? | | ?????????????## #### ##??????????????? | | ??????????????#####??### p #??????????????? | | ?????????????????????#" ## #??????????????? | | ??????????????????####"% ### #??????????????? | | ?????????????????## #" #### #??????????????? | | ?????????????????# #??##??????????????? | | ?????????????????# #??????????????????? | | ??????????????#### #??????????????????? | | ?????????????## ##??????????????????? | | ????????????## * ##???????????????????? | | ????????????# =% ##???????????????????? | | ????????????## #???????????????????? | | ?????????????# #??????????????????? | | ?????????????## #??????????????????? | | ??????????????##### ### #?????????????????? | | ??????????????????###?# #????????????????? | | ??????????????????????# #????????????????? | | ??????????????????????# #????????????????? | | ??????????????????????# ##????????????????? | | ??????????????????????## #####?????????????????? | +----------------------------------------------------+ Best States ------------- Heat Dissipation 45 Energy Generation 14 Energy Capacity 480 Matter Stores 300 Matter Capacity 300 Sight Range 18 Robot Scan Range 15 Terrain Scan Density 10 Armor Coverage 300 Resistance: EM 15 Propulsion Shielding 66 Evasion (%) 63 Item Schematics ----------------- Imp. EM Shotgun | -9/Materials | Scanalyzed Carbon-fiber Leg | -8/Materials | Scanalyzed Grenade Launcher | -8/Materials | Scanalyzed Robot Schematics ------------------ None Fabricated ------------ Nothing Repaired ---------- Aluminum Leg | 64% | -9/Materials Imp. EM Shotgun | 18% | -9/Materials Imp. EM Shotgun | 14% | -8/Materials | Broken Insulated Plating | 9% | -8/Materials Aluminum Leg | 85% | -8/Materials | Corrupted Studied --------- Hvy. EM Pulse Gun | -9/Materials | Hacked Carbon-fiber Leg | -8/Materials | Hacked Imp. Aluminum Leg | -8/Materials | Hacked Titanium Leg | -8/Materials | Hacked Shock Rifle | -8/Materials | Hacked Arc Projector | -7/Factory | Hacked Alien Tech Used ----------------- None Achievements -------------- None Challenges ------------ None Game ------ Seed ShadeDimensionalGenerator Manual? 0 Play Time 01:46:39 Cumulative 38.9 hours Start 2026.02.13 @ 00:20:39 End 2026.02.14 @ 02:45:27 Sessions 5 Manual Loads 0 Difficulty Rogue Special Mode None Game No. 43 Rogue 43 Adventurer 0 Explorer 0 Win Type - Total 0 Types 0/0/0/0/0/0/0/0/0/0 Lore% 16 Gallery% 16 Achievement% 15 Wizard Run 0 Options --------- Layout 1 ASCII 0 Keyboard 1 Movement Numpad Keybinds 0 Fullscreen 2 Font 24/Cog Map View 50x35 Zoom Use 3% Tactical HUD 1 Map Filters NONE Filters NONE Steam 1 RUN: d40bc590-7c49-435a-b82f-8993e339e4e1